bitfinex-derivatives/quotes_ETHF0:USTF0_20250708
["timestamp","ask_amount","ask_price","bid_price","bid_amount"]
[1751983352267,3.27459,2587.3,2587.1,0.10562232]
[1751983352465,2.63559,2587.3,2587.1,0.10562232]
[1751983352665,1.41192,2587.2,2587.1,0.78762232]
[1751983353165,0.639,2587.2,2587.1,0.78762232]
[1751983353467,1.41192,2587.2,2587.1,0.10562232]
[1751983353861,0.77298,2587.0,2586.8,3.2078]
[1751983354068,0.639,2587.0,2586.9,1.45501]
[1751983354260,0.639,2587.0,2586.9,1.56063232]
[1751983354766,0.639,2587.0,2586.9,0.10562232]
[1751983354767,1.41198,2587.0,2586.9,0.10562232]
[1751983355061,1.41198,2587.0,2586.9,0.78762232]
[1751983355365,1.41198,2587.0,2586.9,0.10562232]
[1751983355661,1.41198,2587.0,2586.9,0.682]
[1751983356673,0.639,2587.0,2586.9,0.682]
[1751983356861,0.639,2587.0,2586.9,1.56063232]
[1751983357674,0.639,2587.0,2586.9,0.78762232]
[1751983358066,0.639,2587.0,2586.9,1.56063232]
[1751983358268,0.77294,2587.2,2586.9,2.59753232]
[1751983358571,0.77294,2587.2,2587.1,0.10562232]
[1751983358767,1.41194,2587.2,2587.1,0.10562232]
[1751983358961,1.41194,2587.2,2586.7,3.2078]
[1751983359167,1.93256,2586.9,2586.5,1.0369]
[1751983359367,0.77309,2586.7,2586.6,0.10562232]
[1751983359672,0.77313,2586.5,2586.4,3.2078]
[1751983359866,1.41213,2586.5,2586.4,3.2078]
[1751983360264,1.41213,2586.5,2586.4,3.8898]
[1751983361068,0.639,2586.5,2586.1,3.2078]
[1751983361267,0.7732,2586.3,2586.1,3.98105]
[1751983361468,0.77319,2586.3,2586.2,0.682]
[1751983361669,1.41219,2586.3,2586.2,0.78762232]
[1751983362773,1.41219,2586.3,2586.1,3.2078]
[1751983362774,1.41221,2586.3,2586.1,3.2078]
[1751983362973,1.41221,2586.3,2586.2,0.10562232]
[1751983363170,0.639,2586.3,2586.2,0.78762232]
[1751983363774,1.41219,2586.3,2586.2,0.78762232]
[1751983364275,1.41219,2586.3,2586.2,0.10562232]
[1751983364775,1.41219,2586.3,2586.2,0.78762232]
[1751983365075,0.639,2586.3,2586.2,0.78762232]
[1751983365570,4.9917,2586.8,2586.2,1.82452232]
[1751983365772,1.7839,2586.8,2586.3,1.81006]
[1751983366075,0.77307,2586.7,2586.6,0.10562232]
[1751983366376,1.41207,2586.7,2586.6,0.10562232]
[1751983366578,3.3206,2586.7,2586.1,3.98103]
[1751983366777,0.77316,2586.4,2586.3,0.10562232]
[1751983366977,0.639,2586.4,2586.3,0.10562232]
[1751983367173,0.639,2586.4,2586.3,0.78762232]
[1751983367869,1.41217,2586.4,2586.1,3.98104]
[1751983368075,0.639,2586.4,2586.3,0.682]
[1751983368277,1.41216,2586.4,2586.2,0.10562232]
[1751983368579,1.41216,2586.4,2586.1,3.98103]
[1751983368781,0.77319,2586.3,2586.2,0.10562232]
[1751983368979,2.4348,2586.3,2586.2,0.10562232]
[1751983369279,2.4348,2586.3,2586.1,3.2078]
[1751983369479,2.4348,2586.3,2586.2,0.10562232]
[1751983369781,3.20799,2586.3,2586.2,0.10562232]
[1751983370083,0.77322,2586.2,2586.1,3.2078]
[1751983370277,3.16792,2586.2,2586.1,3.2078]
[1751983370473,3.16794,2586.2,2586.1,0.6338]
[1751983370676,0.6626,2586.2,2586.1,0.6338]
[1751983370882,4.2141,2586.2,2585.9,0.77329]
[1751983371181,4.98732,2586.2,2586.1,0.73942232]
[1751983371380,4.98732,2586.2,2586.1,0.10562232]
[1751983371585,4.98732,2586.2,2585.8,3.98111]
[1751983371778,4.98732,2586.2,2586.1,0.6338]
[1751983372279,4.2141,2586.2,2586.1,0.6338]
[1751983372480,3.5515,2586.2,2585.9,0.7733]
[1751983372682,2.4584,2586.2,2586.1,0.73942232]
[1751983373070,1.7958,2586.2,2586.1,0.73942232]
[1751983373288,2.4584,2586.2,2586.1,0.73942232]
[1751983373779,1.7958,2586.2,2586.1,0.73942232]
[1751983373979,2.4584,2586.2,2586.1,0.73942232]
[1751983374283,1.7958,2586.2,2586.1,0.10562232]
[1751983374481,2.4584,2586.2,2586.1,0.73942232]
[1751983374684,3.23162,2586.2,2586.1,0.73942232]
[1751983375079,2.4584,2586.2,2586.1,0.6338]
[1751983375285,3.23162,2586.2,2586.1,0.6338]
[1751983375975,2.4584,2586.2,2586.1,0.6338]
[1751983376182,1.7958,2586.2,2586.1,0.6338]
[1751983376379,2.4584,2586.2,2586.1,0.6338]
[1751983376882,3.23162,2586.2,2586.1,0.6338]
[1751983377178,0.6626,2586.2,2586.1,0.73942232]
[1751983377486,0.6626,2586.2,2586.1,2.46527232]
[1751983377891,0.77316,2586.4,2586.2,0.77321]
[1751983378180,0.77315,2586.5,2586.3,1.51261232]
[1751983378380,0.77315,2586.5,2586.3,1.69202232]
[1751983378677,1.7352,2586.6,2586.4,0.10562232]
[1751983378878,0.6626,2586.5,2586.4,2.46518232]
[1751983379079,3.98077,2587.1,2586.5,2.03845232]
[1751983379382,3.98077,2587.1,2586.8,0.10562232]
[1751983379383,0.77303,2586.9,2586.8,0.10562232]
[1751983379580,2.83959881,2586.9,2586.8,0.10562232]
[1751983379771,2.83959881,2586.9,2586.6,0.77307]
[1751983379973,0.77296,2587.1,2586.8,3.31342232]
[1751983380179,0.77295,2587.1,2587.0,0.10562232]
[1751983380380,0.77298,2587.0,2586.9,1.8081]
[1751983380683,1.4040359,2587.0,2586.9,2.58111]
[1751983380883,2.1770159,2587.0,2586.9,1.91372232]
[1751983381086,2.1770159,2587.0,2586.9,1.8081]
[1751983381385,2.1770159,2587.0,2586.4,3.366]
[1751983381386,0.77303,2586.9,2586.6,0.77308]
[1751983381580,5.80279,2587.1,2586.5,5.0915]
[1751983381777,1.8528,2586.9,2586.5,5.0915]
[1751983381977,1.9327,2586.7,2586.1,3.2078]
[1751983382175,1.43582,2586.2,2586.1,0.10562232]
[1751983382376,0.77328,2586.0,2585.9,1.8837]
[1751983382577,0.77327,2586.1,2586.0,0.10562232]
[1751983382779,1.8528,2586.4,2586.1,0.10562232]
[1751983383286,0.77321,2586.3,2586.1,3.4438173]
[1751983383585,0.6626,2586.2,2586.1,3.4438173]
[1751983383782,0.6626,2586.2,2586.0,0.77328]
[1751983383983,0.6626,2586.2,2586.1,0.10562232]
[1751983384183,3.2078,2586.5,2586.1,1.69202232]
[1751983384381,1.7368,2586.8,2586.4,0.73942232]
[1751983384588,3.2078,2586.9,2586.7,0.10562232]
[1751983384781,3.2078,2586.9,2586.8,1.51246232]
[1751983385094,3.2078,2587.2,2587.0,0.77296]
[1751983385386,3.8704,2587.2,2587.1,0.73942232]
[1751983385581,5.28992166,2587.2,2587.1,0.73942232]
[1751983385785,1.41952166,2587.2,2587.1,1.51237232]
[1751983385983,1.41952166,2587.2,2587.1,0.73942232]
[1751983386188,1.41952166,2587.2,2587.1,1.51237232]
[1751983386381,2.08212166,2587.2,2587.1,0.73942232]
[1751983387085,2.85504166,2587.2,2587.1,0.73942232]
[1751983387989,2.08212166,2587.2,2587.1,0.73942232]
[1751983388182,2.85504166,2587.2,2587.1,0.10562232]
[1751983388382,2.85504166,2587.2,2587.1,0.73942232]
[1751983389890,6.06284166,2587.2,2587.1,0.73942232]
[1751983390085,1.93246,2587.0,2586.5,3.2078]
[1751983390385,1.4357,2586.6,2586.5,3.8416]
[1751983390983,1.4357,2586.6,2586.3,1.7215]
[1751983390984,0.77316,2586.4,2586.3,1.7215]
[1751983391182,1.43578,2586.4,2586.1,4.22358797]
[1751983391384,1.0484,2586.6,2586.3,0.73942232]
[1751983391385,0.77311,2586.6,2586.3,0.73942232]
[1751983391580,0.77311,2586.6,2586.5,0.10562232]
[1751983391789,1.43571,2586.6,2586.5,0.73942232]
[1751983391990,0.77311,2586.6,2586.3,0.77317]
[1751983392285,4.9932,2586.9,2586.5,0.10562232]
[1751983392491,1.41956682,2586.8,2586.7,0.10562232]
[1751983392681,2.19260682,2586.8,2586.6,3.2078]
[1751983392882,2.19260682,2586.8,2586.7,0.73942232]
[1751983392883,1.43564,2586.8,2586.7,0.73942232]
[1751983393081,1.41953894,2586.8,2586.7,0.73942232]
[1751983393692,1.41953894,2586.8,2586.7,2.46509232]
[1751983394392,4.9168,2587.2,2586.9,0.77299]
[1751983394393,5.68974,2587.2,2586.9,0.77299]
[1751983394589,4.9168,2587.2,2587.1,0.73942232]
[1751983394888,7.77243721,2587.2,2587.1,0.10562232]
[1751983395096,0.77295,2587.1,2587.0,1.7205]
[1751983395292,2.85566721,2587.1,2587.0,2.45992232]
[1751983396391,2.85566721,2587.1,2587.0,0.6338]
[1751983396594,4.56676721,2587.1,2587.0,0.6338]
[1751983397493,3.79381721,2587.1,2587.0,0.6338]
[1751983397687,3.79381721,2587.1,2587.0,1.40678]
[1751983397891,3.79239758,2587.1,2587.0,1.40678]
[1751983398188,2.85414435,2587.1,2587.0,0.6338]
[1751983398395,0.6626,2587.1,2587.0,0.6338]
[1751983398592,2.0811711,2587.1,2587.0,0.6338]
[1751983398794,1.43555,2587.1,2587.0,0.6338]
[1751983398985,1.43555,2587.1,2586.7,0.77306]
[1751983398986,0.6626,2587.1,2586.7,0.77306]
[1751983399294,0.77303,2586.9,2586.8,0.10562232]
[1751983399595,1.43563,2586.9,2586.8,0.10562232]
[1751983399792,0.77307,2586.7,2586.6,5.048]
[1751983399993,2.48916,2586.8,2586.7,0.10562232]
[1751983400292,3.15176,2586.8,2586.7,0.79902232]
[1751983400494,3.15176,2586.8,2586.7,0.10562232]
[1751983400688,0.77314,2586.5,2586.3,3.98097]
[1751983400889,0.6659,2586.5,2586.4,0.6934]
[1751983401194,1.43903,2586.5,2586.4,0.79902232]
[1751983402392,3.08234132,2586.5,2586.1,2.60314]
[1751983402586,2.5515,2586.4,2585.9,4.1618]
[1751983402791,0.6659,2586.0,2585.9,0.6934]
[1751983402991,2.8827,2586.4,2585.9,0.6934]
[1751983402992,0.77324,2586.2,2585.9,1.57233232]
[1751983403294,0.77324,2586.2,2586.1,0.10562232]
[1751983403590,1.43914,2586.2,2586.1,0.10562232]
[1751983403796,0.6659,2586.2,2586.1,0.10562232]
[1751983403989,1.43912,2586.2,2586.1,0.10562232]
[1751983404897,0.77322,2586.2,2586.1,0.10562232]
[1751983405196,1.43912,2586.2,2586.1,0.79902232]
[1751983405391,0.6659,2586.2,2586.1,0.79902232]
[1751983405599,2.65877,2586.4,2586.2,0.77321]
[1751983405794,4.2049,2586.6,2586.3,0.10562232]
[1751983405996,0.6659,2586.4,2586.1,0.6934]
[1751983406195,0.77321,2586.3,2586.1,0.77325]
[1751983406400,0.77319,2586.3,2586.2,0.6934]
[1751983406701,0.77319,2586.3,2586.2,0.79902232]
[1751983407001,0.77326,2586.1,2585.9,3.2078]
[1751983407196,2.65414,2586.2,2586.0,0.6934]
[1751983407391,1.8809,2586.2,2586.1,0.10562232]
[1751983407596,3.32002,2586.2,2586.1,0.79902232]
[1751983407791,3.32002,2586.2,2586.0,0.77328]
[1751983407996,0.6659,2586.2,2586.1,1.57227232]
[1751983408293,6.0861,2586.6,2586.1,0.79902232]
[1751983408603,1.43912,2586.2,2586.1,0.6934]
[1751983408902,2.86067407,2586.2,2586.1,0.6934]
[1751983409107,2.86067407,2586.2,2586.1,0.79902232]
[1751983409401,1.42155407,2586.2,2586.1,1.57227232]
[1751983409596,0.7732,2586.3,2586.1,0.79902232]
[1751983409796,0.6659,2586.2,2586.1,1.46665]
[1751983409996,0.77319,2586.3,2586.2,0.10562232]
[1751983410201,1.43909,2586.3,2586.2,0.10562232]
[1751983410400,0.77322,2586.2,2586.1,0.6934]
[1751983410599,4.26212,2586.2,2586.1,0.6934]
[1751983410999,0.77331,2585.9,2585.8,1.8152]
[1751983411196,5.1519,2586.2,2585.8,2.5086]
[1751983411396,0.77326,2586.1,2586.0,0.10562232]
[1751983411795,0.77326,2586.1,2585.9,0.77329]
[1751983412001,0.77326,2586.1,2586.0,0.10562232]
[1751983412202,1.43916,2586.1,2586.0,0.10562232]
[1751983412499,1.43916,2586.1,2586.0,0.6934]
[1751983412700,0.77326,2586.1,2585.9,0.77329]
[1751983412897,1.43916,2586.1,2586.0,0.10562232]
[1751983413097,1.43916,2586.1,2586.0,1.57230232]
[1751983413298,1.43915,2586.1,2586.0,1.46668]
[1751983413495,0.77325,2586.1,2586.0,0.79902232]
[1751983413701,0.77331,2585.9,2585.8,1.8152]
[1751983413905,1.43921,2585.9,2585.8,2.5086]
[1751983414099,1.43921,2585.9,2585.8,2.61422232]
[1751983414300,0.7734,2585.6,2585.5,3.2078]
[1751983414599,8.76666599,2585.7,2585.2,5.17785797]
[1751983414801,0.77348,2585.4,2585.3,0.10562232]
[1751983415202,2.54068,2585.4,2585.3,0.10562232]
[1751983415903,2.54068,2585.4,2585.1,3.2078]
[1751983415904,1.7672,2585.4,2585.1,3.2078]
[1751983416204,0.77353,2585.2,2584.8,3.43490366]
[1751983416412,2.54075,2585.1,2585.0,0.10562232]
[1751983416601,2.54075,2585.1,2585.0,0.6934]
[1751983416901,1.7672,2585.1,2585.0,0.6934]
[1751983417103,3.98128,2585.4,2585.1,0.77354]
[1751983417408,3.2078,2585.4,2585.3,0.87911232]
[1751983417607,8.442,2585.8,2585.3,7.59815831]
[1751983417909,61.4111,2586.0,2585.8,0.10562232]
[1751983418203,0.77334,2585.8,2585.7,0.6934]
[1751983418404,1.43923,2585.9,2585.8,0.10562232]
[1751983418801,1.43923,2585.9,2585.7,1.46676]
[1751983419002,1.43923,2585.9,2585.8,0.10562232]
[1751983419406,1.43923,2585.9,2585.8,0.6934]
[1751983419802,0.77335,2585.8,2585.6,0.77338]
[1751983420110,1.43927,2585.8,2585.7,0.10562232]
[1751983420407,0.7734,2585.6,2585.5,3.2078]
[1751983420608,0.77348,2585.4,2585.2,3.98131]
[1751983420803,4.38025,2585.5,2585.3,0.87910232]
[1751983421002,0.6659,2585.4,2585.3,1.57251232]
[1751983421203,0.6659,2585.4,2585.3,1.57249232]
[1751983421403,2.56955,2585.5,2585.3,1.57249232]
[1751983421604,1.7961,2585.5,2585.4,0.87908232]
[1751983421800,2.462,2585.5,2585.4,1.57248232]
[1751983422002,82.912,2586.0,2585.5,0.77342]
[1751983422206,1.43931,2585.6,2585.5,0.6934]
[1751983422504,0.77336,2585.8,2585.7,0.10562232]
[1751983422808,1.43926,2585.8,2585.7,0.10562232]
[1751983423008,1.43926,2585.8,2585.7,0.6934]
[1751983423202,2.56944,2585.9,2585.7,0.79902232]
[1751983423403,1.7961,2585.9,2585.8,0.87896232]
[1751983423707,1.93303,2586.3,2585.8,0.87896232]
[1751983423708,3.2078,2586.4,2585.8,10.75298831]
[1751983424006,0.9971,2586.6,2586.3,0.10562232]
[1751983424200,0.7732,2586.3,2586.2,0.77321]
[1751983424405,0.77318,2586.4,2586.2,0.77322]
[1751983424602,3.2078,2586.7,2586.6,0.7731]
[1751983424812,0.77299,2587.0,2586.5,1.93283]
[1751983425103,0.77299,2587.0,2586.9,0.87863232]
[1751983425309,1.42207402,2587.0,2586.9,0.87863232]
[1751983425705,0.77298,2587.0,2586.9,0.87863232]
[1751983426107,0.77298,2587.0,2586.9,0.10562232]
[1751983426311,1.7271,2587.2,2587.1,0.77295]
[1751983426515,1.7783,2587.5,2587.1,3.31342232]
[1751983426713,2.19483354,2587.4,2587.3,0.10562232]
[1751983426904,0.77287,2587.4,2587.3,0.10562232]
[1751983427609,2.19459339,2587.4,2587.3,0.10562232]
[1751983428011,8.76666599,2587.5,2586.9,0.954]
[1751983428314,0.77294,2587.2,2587.1,0.10562232]
[1751983428522,0.77291,2587.3,2587.1,0.10562232]
[1751983428716,0.77293,2587.2,2587.0,0.77297]
[1751983428917,0.77288,2587.4,2587.1,0.10562232]
[1751983429112,1.7446,2587.4,2587.2,0.10562232]
[1751983429520,0.77289,2587.3,2587.2,0.10562232]
[1751983429816,0.77289,2587.3,2586.8,5.08]
[1751983429817,0.77301,2586.9,2586.8,5.08]
[1751983430013,0.6659,2586.9,2586.8,2.67122232]
[1751983430214,1.43891,2586.9,2586.8,2.67122232]
[1751983430416,1.43891,2586.9,2586.8,2.65692232]
[1751983430920,0.6659,2586.9,2586.8,2.65692232]
[1751983431125,1.43891,2586.9,2586.8,2.65692232]
[1751983431327,0.6659,2586.9,2586.8,3.42996232]
[1751983431522,6.6696,2587.2,2586.8,3.42996232]
[1751983431721,0.77299,2587.0,2586.8,4.27834]
[1751983431923,1.44551,2586.9,2586.8,2.5513]
[1751983432122,0.77301,2586.9,2586.8,1.8722]
[1751983432322,0.773,2587.0,2586.9,0.77301]
[1751983432522,1.4455,2587.0,2586.9,1.45211]
[1751983432726,1.4455,2587.0,2586.9,0.78472232]
[1751983433023,1.4455,2587.0,2586.9,0.10562232]
[1751983433228,1.4455,2587.0,2586.9,0.78472232]
[1751983433923,1.4455,2587.0,2586.9,0.6791]
[1751983435828,3.3256,2587.0,2586.9,0.6791]
[1751983436124,1.93256,2586.9,2586.5,5.0046]
[1751983436428,0.7731,2586.6,2586.5,1.7968]
[1751983436631,0.77328,2586.1,2585.9,4.1799]
[1751983436832,0.77328,2586.1,2586.0,0.6791]
[1751983437234,1.93293,2586.4,2585.9,0.9721]
[1751983437235,0.77328,2586.0,2585.9,0.9721]
[1751983437634,1.44578,2586.0,2585.9,0.6791]
[1751983438134,0.77334,2585.8,2585.7,1.7968]
[1751983438328,0.77334,2585.8,2585.7,2.4759]
[1751983438529,1.93307,2586.2,2585.7,3.24925]
[1751983438733,1.7415,2586.1,2585.8,0.77334]
[1751983438932,1.44584,2585.9,2585.8,0.6791]
[1751983439132,1.44581,2585.9,2585.8,1.45244]
[1751983439535,3.2078,2586.3,2585.8,1.6512]
[1751983439731,0.77323,2586.2,2585.9,11.61026599]
[1751983440034,0.77323,2586.2,2586.1,1.45236]
[1751983440327,0.77323,2586.2,2586.1,0.6791]
[1751983440328,1.44573,2586.2,2586.1,0.6791]
[1751983440534,0.77323,2586.2,2586.1,0.6791]
[1751983440725,1.44573,2586.2,2586.1,0.6791]
[1751983441725,1.44573,2586.2,2586.1,1.45236]
[1751983441925,1.44573,2586.2,2586.1,0.6791]
[1751983442125,0.77332,2585.9,2585.8,0.77333]
[1751983442330,0.77332,2585.9,2585.8,0.77335]
[1751983442530,0.77332,2585.9,2585.8,1.45245]
[1751983443130,0.77332,2585.9,2585.8,0.6791]
[1751983443437,1.44582,2585.9,2585.8,0.2921]
[1751983443734,0.77335,2585.8,2585.7,2.57015]
[1751983443933,0.77335,2585.8,2585.6,4.1799]
[1751983443934,0.77338,2585.7,2585.6,0.9721]
[1751983444133,2.53473831,2585.7,2585.6,1.6512]
[1751983444324,1.76135831,2585.7,2585.6,0.6791]
[1751983444529,0.77343,2585.5,2585.4,2.49824]
[1751983444734,5.99066201,2585.5,2585.4,3.17734]
[1751983444929,5.99066201,2585.5,2585.4,1.7248]
[1751983445235,0.77349,2585.3,2585.2,0.9721]
[1751983445436,2.53484831,2585.3,2585.2,2.42472]
[1751983445639,5.99072201,2585.3,2585.2,1.45262]
[1751983445828,6.66322201,2585.3,2585.2,1.45262]
[1751983446026,5.88973201,2585.3,2585.2,1.45262]
[1751983446232,5.89106723,2585.3,2585.2,1.45262]
[1751983446633,1.76135831,2585.3,2585.2,1.45262]
[1751983447234,3.20734831,2585.3,2585.2,0.6791]
[1751983447430,0.77355,2585.1,2585.0,1.888]
[1751983447634,6.66543832,2585.1,2585.0,3.34068]
[1751983447835,6.66543832,2585.1,2585.0,2.5671]
[1751983448035,5.99293832,2585.1,2585.0,3.34068]
[1751983448634,6.66543832,2585.1,2585.0,3.34068]
[1751983449139,5.99293832,2585.1,2585.0,3.34068]
[1751983449538,2.53490831,2585.1,2585.0,3.34068]
[1751983450235,5.21707789,2585.1,2585.0,3.34068]
[1751983450739,5.21707789,2585.1,2585.0,4.31278]
[1751983451434,5.99062789,2585.1,2585.0,4.31278]
[1751983451840,5.21707789,2585.1,2585.0,4.31278]
[1751983452135,5.99062789,2585.1,2585.0,2.66158]
[1751983452540,5.99062789,2585.1,2585.0,3.34068]
[1751983452541,6.66312789,2585.1,2585.0,3.34068]
[1751983452735,6.66312789,2585.1,2585.0,2.5671]
[1751983452936,5.99062789,2585.1,2585.0,3.34068]
[1751983453938,0.77358,2585.0,2584.9,3.98139]
[1751983454138,3.20743831,2585.0,2584.9,4.66049]
[1751983454442,2.53493831,2585.0,2584.9,4.66049]
[1751983454641,2.53493831,2585.0,2584.9,5.63259]
[1751983454937,5.21707789,2585.0,2584.9,5.63259]
[1751983455242,2.53493831,2585.0,2584.9,5.63259]
[1751983456134,3.20743831,2585.0,2584.9,4.66049]
[1751983458436,3.20743831,2585.0,2584.9,3.8869]
[1751983458644,3.20743831,2585.0,2584.9,1.45271]
[1751983459241,2.43385831,2585.0,2584.9,1.45271]
[1751983459443,1.76135831,2585.0,2584.9,2.42481]
[1751983459743,1.76135831,2585.0,2584.9,4.25991]
[1751983460737,1.76135831,2585.0,2584.9,9.82627599]
[1751983460943,5.055,2585.7,2585.3,1.93375]
[1751983461236,5.055,2585.7,2585.5,0.77341]
[1751983461541,1.43994,2585.6,2585.5,0.77341]
[1751983461840,0.77347,2585.4,2585.3,3.98126]
[1751983462045,1.43997,2585.4,2585.3,0.6866]
[1751983462239,1.43997,2585.4,2585.2,0.7735]
[1751983462240,0.7735,2585.3,2585.2,0.7735]
[1751983462445,0.77355,2585.2,2585.1,0.77354]
[1751983462645,2.49325,2585.2,2585.1,1.46014]
[1751983462949,3.15975,2585.2,2585.1,1.46014]
[1751983463247,0.77361,2584.9,2584.8,0.22710366]
[1751983463449,0.77361,2584.9,2584.8,1.68734366]
[1751983463847,0.77361,2584.9,2584.8,0.91370366]
[1751983464248,1.44011,2584.9,2584.8,0.91370366]
[1751983464848,0.77362,2584.9,2584.8,1.68735366]
[1751983465042,5.28979458,2585.1,2585.0,0.77359]
[1751983465238,0.6665,2585.1,2585.0,0.77359]
[1751983465444,1.44006,2585.1,2585.0,0.77359]
[1751983466145,4.9659,2585.4,2585.0,4.39471458]
[1751983466344,0.77356,2585.2,2585.1,1.8843]
[1751983466544,0.77356,2585.1,2585.0,3.98137]
[1751983466740,1.44006,2585.1,2585.0,4.66797]
[1751983466940,0.77356,2585.1,2585.0,4.66797]
[1751983467144,4.12077458,2585.1,2585.0,0.6866]
[1751983467351,0.77362,2584.9,2584.8,0.22710366]
[1751983467548,1.44012,2584.9,2584.8,0.22710366]
[1751983467746,0.6665,2584.9,2584.8,1.00075366]
[1751983467948,0.6665,2584.9,2584.8,1.68735366]
[1751983468446,1.44012,2584.9,2584.8,1.68735366]
[1751983468842,0.6665,2584.9,2584.8,1.68735366]
[1751983469145,4.2605,2585.0,2584.9,0.77362]
[1751983469345,4.2605,2585.0,2584.9,1.46022]
[1751983469346,2.3953,2585.0,2584.9,1.46022]
[1751983469546,3.16889,2585.0,2584.9,1.46022]
[1751983469750,2.59422,2585.3,2585.2,0.77353]
[1751983470053,0.77356,2585.1,2585.0,5.29548458]
[1751983470245,2.7818,2585.6,2585.0,7.72971458]
[1751983470455,5.37797023,2585.6,2585.5,3.45415458]
[1751983470654,0.77341,2585.6,2585.5,2.68071458]
[1751983470950,3.9812,2585.7,2585.6,0.77341]
[1751983471153,4.6477,2585.7,2585.6,0.77341]
[1751983471343,3.2078,2585.7,2585.6,0.77341]
[1751983471551,4.64768,2585.7,2585.6,0.77341]
[1751983471749,0.77341,2585.6,2585.5,0.77341]
[1751983472645,1.43991,2585.6,2585.5,1.46004]
[1751983472851,3.76122734,2585.6,2585.5,0.6866]
[1751983473051,7.30102734,2585.6,2585.5,0.6866]
[1751983473311,0.77356,2585.1,2585.0,5.82258]
[1751983473466,3.09487734,2585.1,2585.0,5.82258]
[1751983474050,3.09487734,2585.1,2585.0,6.50918]
[1751983474248,3.09487734,2585.1,2585.0,0.6866]
[1751983474847,3.76137734,2585.1,2585.0,1.46019]
[1751983475550,3.76137734,2585.1,2584.9,0.77359]
[1751983475551,0.77361,2585.0,2584.9,0.77359]
[1751983475854,2.98781734,2585.0,2584.9,1.46019]
[1751983476052,2.32131734,2585.0,2584.9,1.46019]
[1751983476249,3.76140734,2585.0,2584.9,1.46019]
[1751983476845,2.98781734,2585.0,2584.9,1.46019]
[1751983477053,2.32131734,2585.0,2584.9,1.46019]
[1751983477248,2.98781734,2585.0,2584.9,1.46019]
[1751983477756,3.76140734,2585.0,2584.9,1.46019]
[1751983477950,2.98781734,2585.0,2584.9,1.46019]
[1751983478152,3.76140734,2585.0,2584.9,1.46019]
[1751983479445,2.98781734,2585.0,2584.9,1.46019]
[1751983480451,2.32131734,2585.0,2584.9,2.48759]
[1751983480751,2.32131734,2585.0,2584.9,1.46019]
[1751983480956,2.98781734,2585.0,2584.9,1.46019]
[1751983481349,2.32131734,2585.0,2584.9,1.46019]
[1751983481553,2.32131734,2585.0,2584.9,2.48759]
[1751983481761,2.32131734,2585.0,2584.9,4.36769]
[1751983481961,2.98781734,2585.0,2584.9,1.46019]
[1751983482163,2.32131734,2585.0,2584.9,0.77359]
[1751983482856,2.32131734,2585.0,2584.9,1.46019]
[1751983483255,2.98781734,2585.0,2584.9,1.46019]
[1751983483465,2.32131734,2585.0,2584.9,1.46019]
[1751983483662,2.98781734,2585.0,2584.9,1.46019]
[1751983484463,2.32131734,2585.0,2584.9,1.46019]
[1751983484659,3.47726912,2585.2,2585.1,0.77356]
[1751983484861,6.25441498,2585.2,2585.1,1.46016]
[1751983485262,2.77714586,2585.2,2585.1,1.46016]
[1751983485459,3.55067586,2585.2,2585.1,1.46016]
[1751983486268,2.77714586,2585.2,2585.1,1.46016]
[1751983486463,2.11064586,2585.2,2585.1,1.46016]
[1751983486768,3.47710427,2585.4,2585.1,12.29182422]
[1751983486968,3.47710427,2585.5,2585.4,0.77347]
[1751983487169,0.77339,2585.7,2585.6,0.77341]
[1751983487370,0.77339,2585.7,2585.6,4.66781]
[1751983487371,0.6665,2585.7,2585.6,4.66781]
[1751983487567,2.60824,2585.9,2585.8,0.77335]
[1751983487868,3.27474,2585.9,2585.8,0.77335]
[1751983488173,3.27474,2585.9,2585.8,0.6866]
[1751983488469,0.77338,2585.7,2585.6,3.98119]
[1751983488666,1.43988,2585.7,2585.6,3.98119]
[1751983488965,1.43988,2585.7,2585.6,4.66779]
[1751983489262,1.43988,2585.7,2585.6,3.98119]
[1751983489467,1.43988,2585.7,2585.6,4.66779]
[1751983490170,4.36672,2585.9,2585.8,0.77335]
[1751983490360,5.03312,2585.9,2585.8,1.42925]
[1751983490566,5.03312,2585.9,2585.8,0.77335]
[1751983490766,3.27462,2585.9,2585.8,1.42925]
[1751983491963,2.60822,2585.9,2585.8,0.77335]
[1751983492169,0.77338,2585.8,2585.7,0.77335]
[1751983492570,0.77338,2585.7,2585.6,3.98117]
[1751983492864,1.43978,2585.7,2585.6,4.63707]
[1751983493069,0.6664,2585.7,2585.6,4.63707]
[1751983493270,2.8559,2585.9,2585.8,0.77335]
[1751983493465,4.2288,2586.4,2585.9,1.93331]
[1751983493671,0.77324,2586.3,2586.2,0.77321]
[1751983493861,0.77326,2586.2,2586.1,0.77324]
[1751983494475,0.77326,2586.1,2586.0,2.63637]
[1751983495673,0.77326,2586.1,2586.0,1.8631]
[1751983495874,0.77326,2586.1,2586.0,0.77329]
[1751983496069,1.43966,2586.1,2586.0,0.77329]
[1751983496475,0.6664,2586.1,2586.0,1.42919]
[1751983496871,1.43966,2586.1,2586.0,1.42919]
[1751983498778,4.42565023,2586.1,2586.0,1.42919]
[1751983499178,3.40465023,2586.1,2586.0,1.42919]
[1751983499977,4.42565023,2586.1,2586.0,0.6559]
[1751983500380,4.42565023,2586.1,2586.0,1.42919]
[1751983500381,3.40465023,2586.1,2586.0,1.42919]
[1751983502281,3.40465023,2586.1,2586.0,0.77329]
[1751983502488,3.40465023,2586.1,2586.0,1.42919]
[1751983502787,3.40465023,2586.1,2586.0,0.77329]
[1751983502983,3.40465023,2586.1,2585.9,3.2078]
[1751983502984,0.77329,2586.0,2585.9,3.2078]
[1751983503185,8.01908023,2586.0,2585.9,3.98112]
[1751983503387,6.99808023,2586.0,2585.9,4.63702]
[1751983504085,4.46129023,2586.0,2585.9,4.63702]
[1751983504487,5.23458023,2586.0,2585.9,4.63702]
[1751983506289,3.79489023,2586.0,2585.9,4.63702]